bitfinex-derivatives/quotes_ETHF0:USTF0_20250426
["timestamp","ask_amount","ask_price","bid_price","bid_amount"]
[1745665575965,1.10771,1805.0,1804.8,0.7827]
[1745665576166,5.308,1805.1,1804.8,0.7827]
[1745665576467,5.308,1805.1,1804.7,4.941]
[1745665576658,1.10769,1805.0,1804.8,2.72248]
[1745665576966,1.10774,1804.9,1804.8,1.6147]
[1745665578159,8.13164,1804.9,1804.8,1.6147]
[1745665578405,7.0239,1804.9,1804.8,1.6147]
[1745665578556,7.0239,1804.9,1804.8,2.7225]
[1745665578760,7.0239,1804.9,1804.8,1.6147]
[1745665579756,7.0239,1804.9,1804.8,2.7225]
[1745665580756,5.308,1804.9,1804.8,2.7225]
[1745665581160,1.10774,1804.9,1804.8,1.6147]
[1745665581360,2.82164,1804.9,1804.8,1.6147]
[1745665582365,2.82164,1804.9,1804.7,5.09833]
[1745665582565,4.0057,1805.2,1804.8,2.69006]
[1745665582764,1.10768,1805.0,1804.9,1.5731]
[1745665582962,1.7229,1805.1,1804.9,1.5731]
[1745665583172,1.7229,1805.1,1804.7,3.9905]
[1745665583173,1.10775,1804.9,1804.7,3.9905]
[1745665583468,7.0309,1805.1,1804.7,6.67144]
[1745665583669,1.7229,1805.0,1804.8,1.5731]
[1745665583868,1.10774,1804.9,1804.8,1.5731]
[1745665584066,1.1078,1804.8,1804.7,3.9905]
[1745665584275,1.964,1804.8,1804.7,3.2078]
[1745665584568,1.10814,1804.3,1804.1,1.10819]
[1745665584765,1.10816,1804.2,1804.1,1.5731]
[1745665584974,4.31593,1804.3,1804.1,1.5731]
[1745665585471,3.2078,1804.3,1804.2,1.10816]
[1745665585971,3.2078,1804.3,1804.1,1.5731]
[1745665586371,3.2078,1804.3,1804.2,1.10816]
[1745665588162,1.5801,1804.4,1804.2,1.10816]
[1745665588363,1.5801,1804.4,1804.3,1.7135]
[1745665588572,2.68814,1804.4,1804.3,1.7135]
[1745665589672,1.5801,1804.4,1804.3,1.7135]
[1745665589873,1.5801,1804.4,1804.3,2.8216]
[1745665590067,2.68814,1804.4,1804.3,1.7135]
[1745665590572,2.68814,1804.4,1804.0,1.5871]
[1745665590573,1.1082,1804.2,1804.0,1.5871]
[1745665590767,1.1082,1804.2,1803.9,3.2078]
[1745665590768,1.5803,1804.1,1803.9,3.2078]
[1745665590964,2.68856,1804.1,1803.9,5.93172]
[1745665591366,2.68856,1804.1,1804.0,1.6156]
[1745665592273,1.5803,1804.1,1804.0,1.6156]
[1745665592474,2.68853,1804.1,1804.0,1.6156]
[1745665592868,3.2078,1804.2,1804.0,1.6156]
[1745665593068,4.31596,1804.2,1804.1,0.8195]
[1745665593472,4.31596,1804.2,1804.1,2.4391]
[1745665593874,6.00516,1804.2,1804.1,2.4391]
[1745665594172,2.79736,1804.2,1804.1,2.4391]
[1745665594969,1.6892,1804.2,1804.0,1.10824]
[1745665595276,1.7084,1804.1,1803.9,3.2078]
[1745665595471,1.10829,1804.0,1803.9,3.2078]
[1745665596368,1.10829,1804.0,1803.9,4.7839]
[1745665596669,2.81667,1804.1,1803.9,4.7839]
[1745665596874,2.81665,1804.1,1803.9,5.89223]
[1745665597071,2.81665,1804.1,1804.0,1.5761]
[1745665597773,1.10829,1804.0,1803.9,3.2078]
[1745665597978,2.71949,1804.0,1803.9,3.2078]
[1745665598177,2.71949,1804.0,1803.7,2.67644]
[1745665598178,1.10839,1803.9,1803.7,1.568]
[1745665598375,1.10841,1803.8,1803.7,1.568]
[1745665598568,2.4694,1803.9,1803.7,1.568]
[1745665598766,3.57779,1803.9,1803.7,1.568]
[1745665599171,1.10841,1803.8,1803.7,1.568]
[1745665599372,2.71961,1803.8,1803.7,1.568]
[1745665601373,1.10847,1803.7,1803.6,4.8841]
[1745665601674,2.72577,1803.7,1803.6,5.6929]
[1745665604182,1.6173,1803.7,1803.6,6.80143]
[1745665604372,2.72577,1803.7,1803.6,5.6929]
[1745665604574,1.6173,1803.7,1803.6,6.80143]
[1745665604875,2.72577,1803.7,1803.6,5.6929]
[1745665605071,1.6173,1803.7,1803.6,5.6929]
[1745665605682,1.6173,1803.7,1803.6,6.5486]
[1745665606381,2.72577,1803.7,1803.6,6.5486]
[1745665607577,1.6173,1803.7,1803.6,6.5486]
[1745665607779,2.72577,1803.7,1803.6,6.5486]
[1745665609081,1.6173,1803.7,1803.6,6.5486]
[1745665609286,1.6173,1803.7,1803.6,7.65713]
[1745665610188,1.10845,1803.8,1803.6,7.65713]
[1745665610489,3.60149,1803.9,1803.7,2.78807]
[1745665610839,4.31611,1804.0,1803.7,2.78801]
[1745665610992,5.95101,1804.0,1803.8,1.6796]
[1745665611192,1.10835,1803.9,1803.8,1.6796]
[1745665611383,1.6349,1803.9,1803.8,2.78801]
[1745665611586,3.2078,1804.0,1803.9,1.10835]
[1745665611790,3.2078,1804.0,1803.9,2.78795]
[1745665615494,4.31609,1804.0,1803.9,2.78795]
[1745665615682,4.31609,1804.0,1803.9,1.6796]
[1745665616294,5.91059,1804.0,1803.9,1.6796]
[1745665616793,4.8023,1804.0,1803.9,2.78795]
[1745665617298,5.91059,1804.0,1803.9,2.78795]
[1745665617991,1.5945,1804.0,1803.9,2.78795]
[1745665618197,1.92327,1804.1,1803.9,8.09595]
[1745665618198,4.31607,1804.1,1803.9,8.09595]
[1745665618400,5.91057,1804.1,1804.0,1.5965]
[1745665618992,2.70277,1804.1,1804.0,1.5965]
[1745665619595,4.31583,1804.5,1804.0,6.5965]
[1745665619792,4.0534,1804.5,1804.2,1.10816]
[1745665619993,4.0534,1804.5,1804.3,1.10808]
[1745665620294,4.0534,1804.5,1804.4,1.5858]
[1745665620495,4.0534,1804.5,1804.4,2.4495]
[1745665620696,3.2078,1804.5,1804.4,3.55754]
[1745665621297,3.2078,1804.5,1804.4,2.4495]
[1745665621495,3.2078,1804.5,1804.4,3.55754]
[1745665622200,0.8456,1804.9,1804.4,15.52756]
[1745665622402,8.5717,1805.0,1804.7,1.10782]
[1745665622629,9.4306,1805.0,1804.5,5.16815]
[1745665622904,1.10791,1804.7,1804.5,1.6461]
[1745665623097,1.10791,1804.7,1804.0,2.77071]
[1745665623098,1.6419,1804.6,1804.3,1.10806]
[1745665623298,0.8589,1804.5,1804.3,1.10806]
[1745665623497,0.8589,1804.5,1804.4,1.10804]
[1745665623697,1.6419,1804.6,1804.4,1.10804]
[1745665623996,1.6419,1804.6,1804.5,1.6196]
[1745665626105,2.74982,1804.6,1804.5,1.6196]
[1745665626308,2.74982,1804.6,1804.3,1.10805]
[1745665626498,1.6078,1804.5,1804.2,3.2078]
[1745665627007,1.10808,1804.4,1804.2,3.2078]
[1745665627199,2.4273,1804.3,1804.2,3.2078]
[1745665627405,3.5354,1804.3,1804.2,3.2078]
[1745665627606,2.4273,1804.3,1804.2,3.2078]
[1745665628106,2.4273,1804.3,1804.2,4.31596]
[1745665628409,2.4273,1804.3,1804.2,3.2078]
[1745665628893,2.4273,1804.3,1804.1,3.5619]
[1745665629100,1.6372,1804.2,1804.1,3.5619]
[1745665629400,1.6372,1804.2,1804.1,2.4537]
[1745665630304,1.6372,1804.2,1803.9,4.0609]
[1745665630506,1.10823,1804.1,1803.9,3.2078]
[1745665630707,1.6372,1804.0,1803.9,3.2078]
[1745665631006,2.74549,1804.0,1803.9,3.2078]
[1745665632503,2.74549,1804.0,1803.8,1.5857]
[1745665632504,1.10842,1803.8,1803.7,3.2078]
[1745665632808,2.5589,1803.9,1803.7,1.10844]
[1745665633010,2.5589,1803.9,1803.8,1.5844]
[1745665634306,1.7014,1803.9,1803.8,1.5844]
[1745665634903,2.80975,1803.9,1803.8,1.5844]
[1745665641613,1.10841,1803.8,1803.7,3.2078]
[1745665641814,2.68071,1803.8,1803.7,4.8455]
[1745665642611,2.68071,1803.8,1803.7,1.6377]
[1745665646715,2.68071,1803.8,1803.7,2.74617]
[1745665647016,3.2078,1803.9,1803.7,2.74617]
[1745665647215,4.31615,1803.9,1803.8,1.6486]
[1745665647612,1.10831,1804.0,1803.8,4.8564]
[1745665648116,1.10827,1804.1,1803.9,2.75693]
[1745665648419,1.10827,1804.1,1804.0,2.453]
[1745665648616,1.10827,1804.1,1804.0,3.3096]
[1745665649213,1.1082,1804.2,1804.0,4.41789]
[1745665649413,1.1082,1804.2,1804.1,1.6486]
[1745665649608,4.3159,1804.3,1804.1,1.6486]
[1745665650113,1.10816,1804.2,1804.1,1.6486]
[1745665650306,1.7347,1804.2,1804.1,1.6486]
[1745665650511,2.84286,1804.2,1804.1,1.6486]
[1745665651720,1.7347,1804.2,1804.1,1.6486]
[1745665651921,2.84286,1804.2,1804.1,1.6486]
[1745665652119,1.7347,1804.2,1804.1,1.6486]
[1745665652322,2.84286,1804.2,1804.1,1.6486]
[1745665652723,1.7347,1804.2,1804.1,1.6486]
[1745665653116,4.31594,1804.3,1804.1,1.6486]
[1745665653328,6.01884,1804.3,1804.1,1.6486]
[1745665653723,1.10816,1804.2,1804.1,1.6486]
[1745665653923,2.81106,1804.2,1804.1,1.6486]
[1745665656126,1.10816,1804.2,1804.1,1.6486]
[1745665658424,2.76646,1804.2,1804.1,1.6486]
[1745665662227,1.10816,1804.2,1804.1,1.6486]
[1745665662426,5.97724,1804.9,1804.1,6.6486]
[1745665662627,1.10792,1804.6,1804.4,1.10802]
[1745665662827,1.10788,1804.7,1804.5,2.71836]
[1745665663221,1.10788,1804.7,1804.6,1.7126]
[1745665663423,2.5054,1804.8,1804.6,1.7126]
[1745665663424,3.61322,1804.8,1804.6,1.7126]
[1745665663718,1.10786,1804.7,1804.6,1.7126]
[1745665664421,3.61325,1804.8,1804.6,1.7126]
[1745665666026,1.10786,1804.7,1804.6,1.7126]
[1745665666826,3.61324,1804.8,1804.6,1.7126]
[1745665667528,4.31555,1804.9,1804.7,1.10786]
[1745665667826,3.2078,1804.9,1804.8,1.6205]
[1745665668126,4.8659,1804.9,1804.8,1.6205]
[1745665669215,4.8659,1804.9,1804.8,2.7283]
[1745665669925,5.97364,1804.9,1804.8,1.6205]
[1745665670621,4.8659,1804.9,1804.8,1.6205]
[1745665670819,5.97364,1804.9,1804.8,2.4882]
[1745665671420,5.97364,1804.9,1804.8,3.596]
[1745665671622,3.2078,1804.9,1804.8,3.596]
[1745665672226,1.90503,1805.0,1804.8,2.4882]
[1745665672419,1.90503,1805.0,1804.9,2.424]
[1745665672815,4.788,1805.1,1804.9,2.424]
[1745665672816,5.89564,1805.1,1804.9,2.424]
[1745665673020,5.89564,1805.1,1805.0,1.5875]
[1745665674161,11.20364,1805.1,1805.0,1.5875]
[1745665674324,1.10774,1804.9,1804.8,2.5803]
[1745665674932,2.68152,1805.0,1804.8,2.5803]
[1745665675430,1.10774,1804.9,1804.8,2.5803]
[1745665675631,1.5738,1804.9,1804.8,3.6881]
[1745665675928,1.5738,1804.9,1804.8,2.5803]
[1745665676831,1.5738,1804.9,1804.8,3.6881]
[1745665677221,1.5738,1804.9,1804.8,2.5803]
[1745665677437,2.68154,1804.9,1804.8,2.5803]
[1745665677618,1.5738,1804.9,1804.8,2.5803]
[1745665677822,1.5738,1804.9,1804.8,3.6881]
[1745665678228,2.68154,1804.9,1804.7,4.31566]
[1745665678439,0.8614,1804.8,1804.7,4.31566]
[1745665678627,1.10789,1804.7,1804.5,49.62518]
[1745665678826,1.6606,1804.6,1804.5,49.62518]
[1745665679132,1.6606,1804.6,1804.5,45.3094]
[1745665679587,1.6606,1804.6,1804.5,6.226]
[1745665680929,2.76852,1804.6,1804.5,6.226]
[1745665682032,1.10804,1804.4,1804.3,4.0644]
[1745665682335,1.10804,1804.4,1804.3,4.9057]
[1745665682527,1.59,1804.5,1804.3,4.9057]
[1745665682528,2.69802,1804.5,1804.3,3.3345]
[1745665682727,2.69802,1804.5,1804.4,1.6366]
[1745665685635,1.10804,1804.4,1804.3,1.6979]
[1745665685836,2.78424,1804.4,1804.3,1.6979]
[1745665686036,2.78424,1804.4,1804.3,3.2849]
[1745665686233,1.1081,1804.3,1804.2,3.704]
[1745665686437,3.6143,1804.3,1804.2,3.704]
[1745665686738,1.10823,1804.1,1804.0,1.7209]
[1745665687230,1.6366,1804.2,1804.0,1.7209]
[1745665687231,2.7448,1804.2,1804.0,1.7209]
[1745665687436,2.74478,1804.2,1804.1,3.2078]
[1745665687735,1.10816,1804.2,1804.1,3.2078]
[1745665687936,1.10816,1804.2,1804.1,4.9287]
[1745665688135,1.10815,1804.3,1804.1,4.9287]
[1745665688328,1.10815,1804.3,1804.2,1.7209]
[1745665688534,1.10815,1804.3,1804.2,2.5552]
[1745665692540,1.10816,1804.2,1804.1,3.2078]
[1745665696345,7.77046,1804.2,1803.7,4.0372]
[1745665696559,1.10841,1803.8,1803.7,6.5315]
[1745665703157,1.10841,1803.8,1803.7,11.8395]
[1745665706363,1.10841,1803.8,1803.7,6.5315]
[1745665707254,1.10841,1803.8,1803.7,11.8395]
[1745665708156,1.10841,1803.8,1803.7,6.5315]
[1745665708760,1.10841,1803.8,1803.7,5.6897]
[1745665709060,1.10841,1803.8,1803.7,10.9977]
[1745665709463,1.10841,1803.8,1803.7,5.308]
[1745665709795,1.10853,1803.6,1803.5,3.1648]
[1745665710263,1.10853,1803.6,1803.5,0.7899]
[1745665710463,2.77613,1803.6,1803.5,0.7899]
[1745665712366,2.77613,1803.6,1803.5,2.3784]
[1745665718567,6.75586,1803.8,1803.6,1.10852]
[1745665718568,1.10844,1803.8,1803.6,1.10852]
[1745665718768,1.10841,1803.8,1803.7,4.9379]
[1745665719064,1.10841,1803.8,1803.7,10.2459]
[1745665722960,1.10841,1803.8,1803.7,5.308]
[1745665723171,1.10853,1803.6,1803.5,2.379]
[1745665723973,2.78963,1803.6,1803.5,2.379]
[1745665727172,2.78963,1803.6,1803.5,7.687]
[1745665728100,2.78963,1803.6,1803.5,2.379]
[1745665730376,1.10859,1803.5,1803.4,3.705]
[1745665730580,2.73109,1803.5,1803.4,6.2457]
[1745665731181,2.73109,1803.5,1803.4,11.5537]
[1745665731481,2.73109,1803.5,1803.4,7.8487]
[1745665734078,2.73109,1803.5,1803.4,6.1281]
[1745665735081,2.73109,1803.5,1803.4,0.8201]
[1745665739186,2.73109,1803.5,1803.4,6.1281]
[1745665739389,2.73109,1803.5,1803.4,7.6957]
[1745665740180,2.73109,1803.5,1803.4,2.3877]
[1745665741190,2.73109,1803.5,1803.4,7.6957]
[1745665742087,2.73109,1803.5,1803.4,2.3877]
[1745665743287,2.73109,1803.5,1803.4,7.6957]
[1745665744181,1.10859,1803.5,1803.4,7.6957]
[1745665747389,1.10859,1803.6,1803.4,7.6957]
[1745665747590,1.10859,1803.6,1803.5,1.6304]
[1745665748178,1.10859,1803.6,1803.5,6.9384]
[1745665750687,1.10859,1803.6,1803.5,5.308]
[1745665750990,1.91439,1803.6,1803.5,5.308]
[1745665751184,1.10859,1803.5,1803.4,0.8201]
[1745665751387,2.83209,1803.5,1803.4,0.8201]
[1745665751585,2.77165,1803.4,1802.8,3.2078]
[1745665751784,2.77165,1803.4,1802.8,6.5513]
[1745665751785,1.10896,1802.9,1802.8,6.5513]
[1745665751989,5.97979,1803.2,1802.5,11.10311673]
[1745665751990,1.10909,1802.7,1802.5,11.10311673]
[1745665752195,1.10909,1802.7,1802.6,9.04395283]
[1745665752587,7.83259,1802.7,1802.6,1.43967283]
[1745665752896,1.10921,1802.5,1802.4,1.43967283]
[1745665753090,4.31701,1802.5,1802.4,1.43967283]
[1745665754085,4.31701,1802.5,1802.4,3.16557283]
[1745665754992,1.10921,1802.5,1802.4,3.16557283]
[1745665756092,1.10921,1802.5,1802.4,3.96737283]
[1745665756589,1.10921,1802.5,1802.4,4.79057283]
[1745665757191,1.93761,1802.5,1802.4,4.79057283]
[1745665757386,1.93761,1802.5,1802.4,3.3509]
[1745665757785,2.83267,1802.6,1802.4,3.3509]
[1745665757986,2.83267,1802.6,1802.5,1.7095]
[1745665766100,1.10917,1802.6,1802.5,1.7095]
[1745665766793,2.72857,1802.6,1802.5,1.7095]
[1745665767196,5.93637,1802.6,1802.5,1.7095]
[1745665768705,4.31695,1802.6,1802.5,1.7095]
[1745665770399,4.31695,1802.6,1802.4,1.625]
[1745665770400,1.10921,1802.5,1802.4,1.625]
[1745665770589,2.80471,1802.5,1802.4,1.625]
[1745665771199,2.80471,1802.5,1802.4,3.2528]
[1745665771593,1.6955,1802.5,1802.4,4.36207]
[1745665771794,2.80471,1802.5,1802.4,3.2528]
[1745665772495,1.6955,1802.5,1802.4,4.36207]
[1745665772895,4.31697,1802.6,1802.4,4.36207]
[1745665773092,4.31697,1802.6,1802.5,1.6683]
[1745665776205,1.10933,1802.3,1802.2,3.705]
[1745665776499,5.9807,1802.6,1802.0,4.31726]
[1745665776500,1.10939,1802.2,1802.1,3.2847]
[1745665776703,1.6021,1802.2,1802.1,3.2847]
[1745665777207,2.71149,1802.2,1802.1,3.2847]
[1745665777703,1.6021,1802.2,1802.1,3.2847]
[1745665777896,1.6021,1802.2,1802.1,4.39416]
[1745665779307,9.8099,1802.2,1801.8,3.2078]
[1745665779620,1.10958,1801.9,1801.8,3.2078]
[1745665779911,1.10955,1802.0,1801.8,3.2078]
[1745665780110,1.7154,1801.9,1801.8,8.5158]
[1745665781007,0.7919,1802.1,1802.0,1.10952]
[1745665781208,3.2078,1802.2,1802.1,1.10946]
[1745665782310,3.2078,1802.2,1802.1,2.74986]
[1745665782912,8.81628,1802.6,1802.4,1.10925]
[1745665783112,1.7285,1802.5,1802.4,1.10925]
[1745665783309,1.7285,1802.5,1802.3,0.7936]
[1745665783611,1.7285,1802.5,1802.4,1.6404]
[1745665783806,1.7285,1802.5,1802.4,2.4777]
[1745665787312,8.81627,1802.6,1802.4,3.58697]
[1745665787512,8.81627,1802.6,1802.5,1.6269]
[1745665787810,7.7071,1802.6,1802.5,1.6269]
[1745665788108,7.7071,1802.6,1802.5,2.73611]
[1745665788109,4.0021,1802.6,1802.5,2.73611]
[1745665788305,3.2078,1802.6,1802.5,2.73611]
[1745665789913,3.2078,1802.6,1802.5,1.6269]
[1745665791111,4.8149,1802.6,1802.5,1.6269]
[1745665791446,4.8149,1802.6,1802.1,2.77361]
[1745665791447,9.8149,1802.6,1802.0,3.2078]
[1745665791608,1.10968,1801.8,1801.6,3.1952]
[1745665791807,3.2078,1801.9,1801.6,3.1952]
[1745665792013,1.11013,1801.1,1800.9,11.10311673]
[1745665792210,4.31784,1801.2,1800.9,12.70161673]
[1745665792406,3.2078,1801.2,1800.9,12.70161673]
[1745665792709,3.2078,1801.2,1801.1,1.11007]
[1745665792907,1.10974,1801.7,1801.3,1.10992]
[1745665793102,2.77457,1801.5,1801.0,5.308]
[1745665793302,5.85620826,1801.9,1801.0,5.308]
[1745665793303,1.11007,1801.1,1801.0,5.308]
[1745665793507,3.2078,1801.2,1801.0,5.308]
[1745665793708,3.2078,1801.2,1801.0,8.00803]
[1745665794016,1.11007,1801.1,1801.0,4.1735]
[1745665794313,2.75607,1801.1,1801.0,4.1735]
[1745665794517,1.646,1801.1,1801.0,4.1735]
[1745665794813,2.75607,1801.1,1801.0,5.7634]
[1745665795007,1.646,1801.1,1801.0,5.7634]
[1745665795208,11.46107,1801.1,1801.0,2.54913]
[1745665795411,11.54743672,1801.1,1801.0,2.54913]
[1745665795604,11.54744434,1801.1,1801.0,2.54913]
[1745665796014,1.646,1801.1,1801.0,2.54913]
[1745665797003,2.75607,1801.1,1801.0,2.54913]
[1745665797208,1.646,1801.1,1801.0,2.54913]
[1745665798010,3.2078,1801.2,1801.0,2.54913]
[1745665798205,4.7979,1801.5,1801.2,1.10997]
[1745665798411,3.2078,1801.5,1801.3,2.68992]
[1745665798617,3.706,1801.6,1801.4,1.58]
[1745665798813,6.40587,1801.6,1801.4,1.58]
[1745665799214,1.5901,1801.6,1801.4,7.99785]
[1745665800821,1.5901,1801.6,1801.4,6.888]
[1745665801420,2.69987,1801.6,1801.4,6.888]
[1745665801921,1.5901,1801.6,1801.4,6.888]
[1745665802139,2.69987,1801.6,1801.4,6.888]
[1745665802920,1.5901,1801.6,1801.4,6.888]
[1745665803113,1.5901,1801.6,1801.4,7.99788]
[1745665803415,3.2078,1801.7,1801.4,6.888]
[1745665803716,3.2078,1801.9,1801.7,1.10968]
[1745665803918,2.81595,1802.0,1801.8,1.6816]
[1745665804222,2.81595,1802.0,1801.8,6.9896]
[1745665804517,2.77444,1801.6,1800.7,3.2078]
[1745665804713,1.11013,1801.0,1800.9,1.6816]
[1745665804917,4.31793,1801.0,1800.9,1.6816]
[1745665805121,4.31793,1801.0,1800.9,6.9896]
[1745665805918,3.2078,1801.0,1800.9,6.9896]
[1745665806425,4.8298,1801.0,1800.9,6.9896]
[1745665806726,5.93993,1801.0,1800.9,5.308]
[1745665807119,4.8298,1801.0,1800.9,5.308]
[1745665807712,5.93993,1801.0,1800.9,5.308]
[1745665812325,3.2078,1801.0,1800.9,5.308]
[1745665812627,3.2078,1801.1,1800.9,6.41817]
[1745665812831,3.2078,1801.1,1801.0,1.5795]
[1745665813027,4.31787,1801.1,1801.0,1.5795]
[1745665813421,3.2078,1801.1,1801.0,1.5795]
[1745665814230,4.31787,1801.1,1801.0,5.308]
[1745665814524,3.2078,1801.1,1801.0,6.41813]
[1745665815028,3.2078,1801.1,1801.0,7.24723]
[1745665815627,1.11,1801.3,1801.1,1.11006]
[1745665815823,1.7038,1801.4,1801.0,6.41813]
[1745665816027,1.11007,1801.1,1801.0,5.308]
[1745665816228,1.11007,1801.1,1801.0,6.9477]
[1745665816427,1.11007,1801.1,1801.0,8.05783]
[1745665817629,1.11007,1801.1,1801.0,6.9477]
[1745665820729,1.7038,1801.2,1801.0,6.9477]
[1745665820932,3.2078,1801.3,1801.1,1.93624]
[1745665821231,3.2078,1801.3,1801.2,2.5478]
[1745665822132,3.2078,1801.3,1801.2,7.8558]
[1745665823731,4.8274,1801.3,1801.2,7.8558]
[1745665823930,4.8274,1801.3,1801.2,8.96581]
[1745665825935,3.2078,1801.3,1801.2,8.96581]
[1745665827433,1.6196,1801.4,1801.3,1.10995]
[1745665827637,1.6196,1801.4,1801.3,2.82125]
[1745665828140,1.6196,1801.4,1801.3,8.12925]
[1745665828341,4.0164,1801.5,1801.4,1.10989]
[1745665828533,4.0164,1801.5,1801.4,2.82119]
[1745665828826,5.6543,1801.5,1801.4,1.10989]
[1745665829230,5.6543,1801.5,1801.4,6.41789]
[1745665829840,5.6543,1801.5,1801.4,5.308]
[1745665831743,6.76413,1801.5,1801.4,5.308]
[1745665832639,2.4465,1801.5,1801.4,6.41789]
[1745665832835,2.499,1801.7,1801.4,5.308]
[1745665833143,2.499,1801.7,1801.5,3.53749]
[1745665833443,2.499,1801.7,1801.6,1.5765]
[1745665833644,3.6087,1801.7,1801.6,1.5765]
[1745665835140,1.6476,1801.7,1801.6,1.5765]
[1745665835347,1.10966,1801.8,1801.6,2.388]
[1745665835545,1.10966,1801.8,1801.7,1.5989]
[1745665835945,2.68486,1801.8,1801.7,1.5989]
[1745665836250,2.68486,1801.8,1801.7,6.9069]
[1745665836446,2.68486,1801.8,1801.7,5.308]
[1745665837249,2.68486,1801.8,1801.3,1.10994]
[1745665837250,2.77426,1801.7,1801.2,3.2451]
[1745665837448,1.10995,1801.3,1801.2,3.2451]
[1745665838146,3.52143,1801.4,1801.2,8.5531]
[1745665838349,3.52143,1801.4,1801.3,1.5989]
[1745665839051,2.4115,1801.4,1801.3,1.5989]
[1745665839242,2.4115,1801.4,1801.3,6.9069]
[1745665839950,3.52139,1801.4,1801.3,6.9069]
[1745665841151,3.52139,1801.4,1801.3,5.308]
[1745665842352,3.52139,1801.4,1801.3,7.0373]
[1745665842553,2.4115,1801.4,1801.3,7.0373]
[1745665842849,4.31754,1801.7,1801.4,1.10983]
[1745665843054,3.2078,1801.7,1801.5,2.83913]
[1745665843249,3.2078,1801.7,1801.6,2.5338]
[1745665843450,3.2078,1801.7,1801.6,3.3982]
[1745665843743,3.2078,1801.7,1801.6,4.50796]
[1745665845752,5.95253,1801.9,1801.7,1.10969]
[1745665845952,4.31743,1801.9,1801.8,1.7087]
[1745665846348,3.73562364,1802.5,1802.0,1.1095]
[1745665846549,1.10939,1802.3,1802.2,3.2078]
[1745665846851,1.10939,1802.3,1802.2,45.7165]
[1745665847253,1.10939,1802.3,1802.2,51.0245]
[1745665847448,1.1093,1802.4,1802.2,10.2245]
[1745665847648,1.10929,1802.4,1802.2,10.2245]
[1745665847843,2.74832,1802.5,1802.3,1.7032]
[1745665848251,1.6391,1802.5,1802.3,7.0112]
[1745665848757,1.6391,1802.5,1802.4,1.7032]
[1745665849845,1.6391,1802.5,1802.4,2.81247]
[1745665850257,1.6391,1802.5,1802.4,7.0112]
[1745665850494,2.74831,1802.5,1802.4,7.0112]
[1745665850961,1.6391,1802.5,1802.4,7.0112]
[1745665851162,2.74831,1802.5,1802.4,5.308]
[1745665851461,10.95611,1802.5,1802.4,5.308]
[1745665852266,10.95611,1802.5,1802.2,1.10939]
[1745665852461,1.571,1802.4,1802.2,2.77189]
[1745665855864,1.571,1802.4,1802.2,1.6625]
[1745665856159,3.2078,1802.5,1802.2,1.6625]
[1745665856364,1.10917,1802.6,1802.2,1.6625]
[1745665856563,1.10917,1802.6,1802.2,2.77189]
[1745665856765,1.6176,1802.5,1802.2,2.77189]
[1745665857058,1.6176,1802.5,1802.3,1.7139]
[1745665858267,1.6176,1802.5,1802.3,7.0219]
[1745665858669,1.6176,1802.5,1802.4,1.7139]
[1745665858872,2.72681,1802.5,1802.4,1.7139]
[1745665859167,1.10915,1802.6,1802.4,1.7139]
[1745665859566,1.10915,1802.6,1802.5,0.8513]
[1745665860366,1.10915,1802.6,1802.2,3.2078]
[1745665860367,3.2078,1802.6,1802.2,3.2078]
[1745665860666,1.10933,1802.3,1802.2,4.8647]
[1745665861271,1.10933,1802.3,1802.2,10.1727]
[1745665862268,1.10933,1802.3,1802.2,4.8647]
[1745665863161,1.10933,1802.3,1802.2,10.1727]
[1745665863604,1.10933,1802.3,1802.2,6.9649]
[1745665864463,4.31713,1802.3,1802.2,2.1002]
[1745665864689,9.31713,1802.3,1802.2,2.1002]
[1745665865062,11.00163,1802.3,1802.2,2.1002]
[1745665865265,1.10957,1802.0,1801.8,42.5177]
[1745665865669,1.10957,1802.0,1801.9,1.7177]
[1745665866270,1.10957,1802.0,1801.9,7.0257]
[1745665866461,2.73937,1802.0,1801.9,7.0257]
[1745665867674,5.98117,1802.3,1801.9,7.0257]
[1745665867675,3.2078,1802.3,1801.9,7.0257]
[1745665867872,1.10943,1802.2,1802.0,1.5723]
[1745665868173,1.10943,1802.2,1802.0,6.8803]
[1745665868568,1.10943,1802.2,1802.1,1.5723]
[1745665869772,1.10943,1802.2,1802.1,2.3581]
[1745665870109,5.94698,1802.3,1802.1,2.3581]
[1745665870271,4.31718,1802.3,1802.2,2.5134]
[1745665870573,2.77266,1802.8,1802.2,6.83055]
[1745665870574,1.10924,1802.5,1802.2,6.83055]
[1745665870874,1.10924,1802.5,1802.3,1.6467]
[1745665871271,1.10924,1802.5,1802.3,2.75603]
[1745665871670,2.68909,1802.6,1802.4,1.6467]
[1745665871871,1.10921,1802.5,1802.4,1.6467]
[1745665872070,1.10921,1802.5,1802.2,8.91986]
[1745665872071,1.10933,1802.3,1802.2,7.8105]
[1745665872270,1.10933,1802.3,1802.2,9.4431]
[1745665873671,1.10933,1802.3,1802.2,3.736]
[1745665873873,1.10939,1802.2,1802.1,0.7858]
[1745665874077,2.82809,1802.2,1802.1,0.7858]
[1745665874277,1.10946,1802.1,1802.0,1.6326]
[1745665874579,2.82816,1802.1,1802.0,1.6326]
[1745665874780,1.10952,1802.0,1801.9,8.5836]
[1745665874971,2.82822,1802.0,1801.9,10.2162]